fUSD/lending_fUSD_20240318
["ID","MTS","AMOUNT","RATE_DAILY","PERIOD"]
[319465917,1710798637839,-449.48,0.00019823,2]
[319465918,1710798637854,-1500.0,0.00019996,2]
[319465919,1710798637869,-155.0,0.0002,2]
[319465920,1710798637884,-153.80188616,0.00020012,2]
[319465921,1710798637897,-151.07221851,0.00020037,2]
[319465922,1710798637912,-157.14,0.00020041,2]
[319465923,1710798637926,-1500.0,0.0002007,2]
[319465924,1710798637941,-153.80188616,0.00020071,2]
[319465925,1710798637955,-166.44360795,0.00020076,2]
[319465926,1710798637970,-2998.0,0.00020116,2]
[319465927,1710798637985,-153.05383811,0.00020131,2]
[319465928,1710798638001,-415.74,0.00020212,2]
[319465929,1710798638015,-186.42814042,0.00020257,2]
[319465930,1710798638030,-210.0,0.00020266,2]
[319465931,1710798638045,-157.14,0.00020272,2]
[319465932,1710798638060,-1500.0,0.00020383,2]
[319465933,1710798638075,-204.0,0.000204,2]
[319465934,1710798638090,-151.07221851,0.0002042,2]
[319465935,1710798638105,-153.6268143,0.00020456,2]
[319465936,1710798638120,-157.14,0.00020503,2]
[319465937,1710798638135,-385.0,0.00020548,2]
[319465938,1710798638150,-1500.0,0.00020618,2]
[319465939,1710798638471,-151.09827313,0.00020679,2]
[319465940,1710798638484,-184.5123,0.000207,2]
[319465941,1710798638494,-157.14,0.00020734,2]
[319465942,1710798638503,-153.05383811,0.00020744,2]
[319465943,1710798638513,-1978.5517,0.000208,2]
[319465944,1710798638523,-197.188,0.00020834,2]
[319465945,1710798638532,-204.0,0.0002086,2]
[319465946,1710798638542,-151.09827313,0.00020882,2]
[319465947,1710798638552,-178.29,0.00020916,2]
[319465948,1710798638562,-260.53,0.00020916,2]
[319465949,1710798638571,-157.14,0.00020966,2]
[319465950,1710798638580,-248.09,0.0002099,15]
[319465951,1710798638589,-165.66717247,0.00021001,2]
[319465952,1710798638598,-1337.7,0.00021096,2]
[319465953,1710798638607,-1500.0,0.00021166,2]
[319465954,1710798638616,-153.80188616,0.00021176,2]
[319465955,1710798638624,-153.80188616,0.00021186,2]
[319465956,1710798638634,-157.14,0.00021197,2]
[319465957,1710798638643,-200.0,0.00021201,2]
[319465958,1710798638654,-200.0,0.00021201,2]
[319465959,1710798638662,-500.0,0.00021201,2]
[319465960,1710798638671,-200.0,0.00021201,2]
[319465961,1710798638680,-153.80188616,0.00021279,2]
[319465962,1710798638689,-204.0,0.0002132,2]
[319465963,1710798638698,-221.56272092,0.00021464,2]
[319465964,1710798638707,-1129.36076717,0.00021479,2]
[319465965,1710798638716,-1075.3674674,0.00021479,2]
[319465966,1710798638725,-1130.95285047,0.00021479,2]
[319465967,1710798638734,-782.68954789,0.00021595,2]
[319465968,1710798638743,-168.286696,0.00021644,2]
[319465969,1710798638752,-163.68,0.00021677,2]
[319465970,1710798638761,-180.0,0.00021689,2]
[319465971,1710798638770,-201.46904127,0.00021697,2]
[319465972,1710798638779,-552.02291489,0.000217,2]
[319465973,1710798638795,-9492.35618511,0.000217,2]
[319465974,1710798638805,-1102.9375188,0.000217,2]
[319465975,1710798638836,-296.94857747,0.000217,2]
[319465976,1710798638845,-1000.0,0.000217,2]
[319465977,1710798638855,-1690.28040553,0.000217,2]
[319465978,1710798638875,-809.71959447,0.000217,2]
[319465979,1710798638884,-27.69740055,0.000217,2]
[319465980,1710798638899,-208.50684099,0.000217,2]
[319465981,1710798638909,-209.75523358,0.00021714,2]
[319465982,1710798638928,-1011.03399856,0.00021714,2]
[319465983,1710798638939,-279.21076786,0.00021714,2]
[319465984,1710798638948,-200.0,0.00021741,2]
[319465985,1710798638957,-385.0,0.00021781,2]
[319465986,1710798638966,-333.031906,0.00021787,3]
[319465987,1710798638975,-333.031906,0.00021787,4]
[319465988,1710798638984,-201.031906,0.00021787,5]
[319465989,1710798638993,-333.031906,0.00021788,5]
[319465990,1710798639002,-265.95685573,0.00021788,5]
[319465991,1710798639018,-67.07505027,0.00021788,5]
[319465992,1710798639027,-333.031906,0.00021788,5]
[319465993,1710798639037,-333.031906,0.00021788,5]
[319465994,1710798639046,-333.031906,0.00021788,5]
[319465995,1710798639056,-333.031906,0.00021788,4]
[319465996,1710798639065,-333.031906,0.00021788,4]
[319465997,1710798639074,-333.031906,0.00021788,4]
[319465998,1710798639083,-333.031906,0.00021788,4]
[319465999,1710798639092,-333.031906,0.00021788,4]
[319466000,1710798639101,-333.031906,0.00021788,3]
[319466001,1710798639110,-333.031906,0.00021788,3]
[319466002,1710798639120,-333.031906,0.00021788,3]
[319466003,1710798639128,-333.031906,0.00021788,3]
[319466004,1710798639138,-333.031906,0.00021788,3]
[319466005,1710798639147,-310.7,0.0002179,3]
[319466006,1710798639156,-155.35,0.0002179,3]
[319466007,1710798639165,-466.05,0.0002179,3]
[319466008,1710798639173,-204.0,0.0002179,2]
[319466009,1710798639182,-333.031906,0.00021798,3]
[319466010,1710798639191,-333.031906,0.00021798,3]
[319466011,1710798639200,-333.031906,0.00021798,3]
[319466012,1710798639209,-333.031906,0.00021798,3]
[319466013,1710798639218,-333.031906,0.00021798,3]
[319466014,1710798639232,-333.031906,0.00021798,4]
[319466015,1710798639241,-333.031906,0.00021798,4]
[319466016,1710798639250,-333.031906,0.00021798,4]
[319466017,1710798639260,-333.031906,0.00021798,4]
[319466018,1710798639271,-333.031906,0.00021798,4]
[319466019,1710798639280,-333.031906,0.00021798,5]
[319466020,1710798639289,-333.031906,0.00021798,5]
[319466022,1710798639299,-333.031906,0.00021798,5]
[319466024,1710798639309,-333.031906,0.00021798,5]
[319466026,1710798639319,-333.031906,0.00021798,5]
[319466029,1710798639329,-440.63550621,0.00021799,2]
[319466032,1710798639338,-27840.27998184,0.000218,5]
[319466074,1710798639774,-300.0,0.00019708,2]
[319466076,1710798639785,-170.98,0.00019708,2]
[319466078,1710798639794,-1473.019975,0.000218,5]
[319466085,1710798639827,-2802.8004,0.000218,5]
[319466093,1710798639861,-252658.1721096,0.000218,5]
[319466096,1710798639870,-432.70043894,0.00021812,2]
[319466099,1710798639879,-7500.0,0.00021816,2]
[319466102,1710798639889,-514.8558,0.00021817,2]
[319466105,1710798639898,-4850.66063735,0.00021817,2]
[319466108,1710798639907,-179.10691236,0.00021817,2]
[319466111,1710798639916,-151.06547496,0.00021817,2]
[319466113,1710798639925,-190.5831363,0.00021817,2]
[319466115,1710798639934,-717.94129347,0.00021817,2]
[319466118,1710798639943,-2220.09035646,0.00021817,5]
[319466121,1710798639952,-151.07221851,0.00021844,2]
[319466124,1710798639962,-2882.03253432,0.00021899,2]
[319466127,1710798639971,-207.70944911,0.000219,2]
[319466130,1710798639980,-500.0,0.000219,2]
[319466133,1710798639989,-2000.0,0.000219,2]
[319466136,1710798639999,-990.71270011,0.00021906,2]
[319466139,1710798640009,-21046.3948116,0.00021912,2]
[319466142,1710798640018,-657.053979,0.00021912,2]
[319466145,1710798640028,-1235.12692231,0.00021915,2]
[319466148,1710798640037,-380.97854139,0.00021915,2]
[319466152,1710798640048,-163.3317181,0.00021915,2]
[319466155,1710798640057,-7038.25839868,0.00021915,2]
[319466158,1710798640067,-570.0,0.00021916,2]
[319466161,1710798640076,-155.0,0.00021916,2]
[319466163,1710798640085,-1063.41576265,0.00021916,2]
[319466165,1710798640094,-205.27555849,0.00021916,2]
[319466167,1710798640103,-5003.12754987,0.00021916,2]
[319466169,1710798640112,-1677952.82283649,0.00021916,2]
[319466171,1710798640121,-380.66587596,0.00021917,2]
[319466173,1710798640130,-500.0,0.00021917,2]
[319466175,1710798640139,-500.0,0.00021917,2]
[319466177,1710798640148,-500.0,0.00021917,2]
[319466178,1710798640158,-500.0,0.00021917,2]
[319466179,1710798640167,-500.0,0.00021917,2]
[319466180,1710798640176,-500.0,0.00021917,2]
[319466182,1710798640185,-500.0,0.00021917,2]
[319466184,1710798640194,-500.0,0.00021917,2]
[319466186,1710798640203,-289.00297195,0.00021917,2]
[319466188,1710798640213,-500.0,0.00021917,2]
[319466190,1710798640222,-500.0,0.00021917,2]
[319466192,1710798640232,-500.0,0.00021917,2]
[319466194,1710798640244,-500.0,0.00021917,2]
[319466196,1710798640254,-2198.08460813,0.00021917,2]
[319466198,1710798640263,-500.0,0.00021917,2]
[319466199,1710798640273,-500.0,0.00021917,2]
[319466201,1710798640282,-500.0,0.00021917,2]
[319466203,1710798640291,-278.47271727,0.00021917,2]
[319466206,1710798640302,-500.0,0.00021917,2]
[319466208,1710798640311,-500.0,0.00021917,2]
[319466209,1710798640320,-500.0,0.00021917,2]
[319466212,1710798640330,-155.48290048,0.00021917,2]
[319466214,1710798640339,-500.0,0.00021917,2]
[319466215,1710798640348,-155.0,0.00021917,2]
[319466217,1710798640357,-500.0,0.00021917,2]
[319466219,1710798640366,-342.72246014,0.00021917,2]
[319466221,1710798640375,-500.0,0.00021917,2]
[319466223,1710798640384,-500.0,0.00021917,2]
[319466225,1710798640393,-500.0,0.00021917,2]
[319466226,1710798640402,-500.0,0.00021917,2]
[319466228,1710798640410,-500.0,0.00021917,2]
[319466230,1710798640419,-500.0,0.00021917,2]
[319466232,1710798640429,-500.0,0.00021917,2]
[319466234,1710798640438,-500.0,0.00021917,2]
[319466236,1710798640447,-500.0,0.00021917,2]
[319466238,1710798640456,-804.57108196,0.00021917,2]
[319466240,1710798640466,-500.0,0.00021917,2]
[319466241,1710798640475,-1260.36,0.00021917,2]
[319466243,1710798640484,-500.0,0.00021917,2]
[319466245,1710798640493,-500.0,0.00021917,2]
[319466247,1710798640502,-1163.88287883,0.00021917,2]
[319466249,1710798640511,-500.0,0.00021917,2]
[319466251,1710798640521,-500.0,0.00021917,2]
[319466253,1710798640530,-500.0,0.00021917,2]
[319466255,1710798640540,-500.0,0.00021917,2]
[319466257,1710798640550,-500.0,0.00021917,2]
[319466259,1710798640559,-958.92,0.00021917,2]
[319466261,1710798640568,-500.0,0.00021917,2]
[319466263,1710798640577,-500.0,0.00021917,2]
[319466265,1710798640586,-751.51,0.00021917,2]
[319466267,1710798640595,-500.0,0.00021917,2]
[319466269,1710798640604,-1402.28,0.00021917,2]
[319466271,1710798640613,-1469.97,0.00021917,2]
[319466273,1710798640622,-500.0,0.00021917,2]
[319466275,1710798640631,-476.01472194,0.00021917,2]
[319466276,1710798640641,-500.0,0.00021917,2]
[319466278,1710798640650,-426.55250287,0.00021917,2]
[319466280,1710798640659,-500.0,0.00021917,2]
[319466282,1710798640668,-510.72,0.00021917,2]
[319466284,1710798640677,-500.0,0.00021917,2]
[319466286,1710798640687,-510.72,0.00021917,2]
[319466288,1710798640695,-510.72,0.00021917,2]
[319466290,1710798640705,-510.72,0.00021917,2]
[319466292,1710798640714,-510.72,0.00021917,2]
[319466294,1710798640723,-510.72,0.00021917,2]
[319466296,1710798640732,-510.72,0.00021917,2]
[319466298,1710798640741,-510.72,0.00021917,2]
[319466300,1710798640750,-510.72,0.00021917,2]
[319466302,1710798640760,-510.72,0.00021917,2]
[319466304,1710798640769,-510.72,0.00021917,2]
[319466306,1710798640779,-510.72,0.00021917,2]
[319466308,1710798640787,-510.72,0.00021917,2]
[319466310,1710798640797,-510.72,0.00021917,2]
[319466311,1710798640807,-510.72,0.00021917,2]
[319466312,1710798640816,-510.72,0.00021917,2]
[319466313,1710798640827,-510.72,0.00021917,2]
[319466314,1710798640836,-510.72,0.00021917,2]
[319466316,1710798640845,-510.72,0.00021917,2]
[319466318,1710798640855,-510.72,0.00021917,2]
[319466320,1710798640864,-510.72,0.00021917,2]
[319466322,1710798640873,-510.72,0.00021917,2]
[319466324,1710798640882,-510.72,0.00021917,2]
[319466326,1710798640891,-500.0,0.00021917,2]
[319466328,1710798640900,-510.91578859,0.00021917,2]
[319466330,1710798640909,-500.0,0.00021917,2]
[319466332,1710798640918,-500.0,0.00021917,2]
[319466334,1710798640927,-500.0,0.00021917,2]
[319466336,1710798640935,-532.82938452,0.00021917,2]
[319466338,1710798640944,-500.0,0.00021917,2]
[319466340,1710798640953,-500.0,0.00021917,2]
[319466342,1710798640962,-500.0,0.00021917,2]
[319466344,1710798640971,-1599.5,0.00021917,2]
[319466346,1710798640981,-2804.26,0.00021917,2]
[319466348,1710798640990,-2549.11,0.00021917,2]
[319466350,1710798640998,-500.0,0.00021917,2]
[319466352,1710798641009,-500.0,0.00021917,2]
[319466354,1710798641018,-500.0,0.00021917,2]
[319466356,1710798641028,-500.0,0.00021917,2]
[319466358,1710798641038,-500.0,0.00021917,2]
[319466360,1710798641048,-2676.96,0.00021917,2]
[319466362,1710798641057,-500.0,0.00021917,2]
[319466364,1710798641066,-919.88,0.00021917,2]
[319466366,1710798641076,-500.0,0.00021917,2]
[319466368,1710798641085,-1541.6,0.00021917,2]
[319466370,1710798641095,-500.0,0.00021917,2]
[319466372,1710798641104,-500.0,0.00021917,2]
[319466374,1710798641113,-1027.15,0.00021917,2]
[319466376,1710798641122,-500.0,0.00021917,2]
[319466378,1710798641131,-500.0,0.00021917,2]
[319466380,1710798641140,-500.0,0.00021917,2]
[319466382,1710798641149,-500.0,0.00021917,2]
[319466384,1710798641158,-500.0,0.00021917,2]
[319466386,1710798641167,-500.0,0.00021917,2]
[319466387,1710798641176,-1392.25,0.00021917,2]
[319466389,1710798641185,-500.0,0.00021917,2]
[319466391,1710798641194,-517.31,0.00021917,2]
[319466393,1710798641204,-500.0,0.00021917,2]
[319466395,1710798641213,-482.15444827,0.00021917,2]
[319466398,1710798641223,-2086.86,0.00021917,2]
[319466399,1710798641235,-500.0,0.00021917,2]
[319466402,1710798641245,-500.0,0.00021917,2]
[319466404,1710798641254,-500.0,0.00021917,2]
[319466406,1710798641263,-500.95168684,0.00021917,2]
[319466408,1710798641272,-778.56,0.00021917,2]
[319466409,1710798641281,-1312.99,0.00021917,2]
[319466411,1710798641291,-500.0,0.00021917,2]
[319466413,1710798641300,-1096.37,0.00021917,2]
[319466415,1710798641310,-500.0,0.00021917,2]
[319466417,1710798641319,-636.36,0.00021917,2]
[319466419,1710798641328,-1562.48,0.00021917,2]
[319466421,1710798641337,-500.0,0.00021917,2]
[319466423,1710798641346,-500.0,0.00021917,2]
[319466425,1710798641354,-500.0,0.00021917,2]
[319466427,1710798641364,-500.0,0.00021917,2]
[319466429,1710798641372,-500.0,0.00021917,2]
[319466430,1710798641382,-500.0,0.00021917,2]
[319466431,1710798641391,-500.0,0.00021917,2]
[319466432,1710798641400,-500.0,0.00021917,2]
[319466434,1710798641409,-500.0,0.00021917,2]
[319466436,1710798641418,-1115.13,0.00021917,2]
[319466438,1710798641426,-620.02,0.00021917,2]
[319466443,1710798641624,-696.24,0.00021917,2]
[319466444,1710798641636,-150.0,0.00021917,2]
[319466445,1710798641645,-500.0,0.00021917,2]
[319466446,1710798641654,-1671.08,0.00021917,2]
[319466447,1710798641664,-1492.28,0.00021917,2]
[319466448,1710798641673,-500.0,0.00021917,2]
[319466449,1710798641682,-785.74,0.00021917,2]
[319466450,1710798641692,-500.0,0.00021917,2]
[319466451,1710798641702,-500.0,0.00021917,2]
[319466452,1710798641712,-224.17223704,0.00021917,2]
[319466453,1710798641721,-500.0,0.00021917,2]
[319466454,1710798641731,-500.0,0.00021917,2]
[319466455,1710798641742,-500.0,0.00021917,2]
[319466456,1710798641752,-500.0,0.00021917,2]
[319466457,1710798641762,-2147.18,0.00021917,2]
[319466458,1710798641773,-500.0,0.00021917,2]
[319466459,1710798641782,-1472.41,0.00021917,2]
[319466460,1710798641791,-500.0,0.00021917,2]
[319466461,1710798641801,-500.0,0.00021917,2]
[319466462,1710798641810,-981.45,0.00021917,2]
[319466463,1710798641819,-500.0,0.00021917,2]
[319466464,1710798641828,-990.75,0.00021917,2]
[319466465,1710798641837,-500.0,0.00021917,2]
[319466466,1710798641846,-710.62,0.00021917,2]
[319466467,1710798641855,-500.0,0.00021917,2]
[319466468,1710798641865,-500.0,0.00021917,2]
[319466469,1710798641875,-500.0,0.00021917,2]
[319466470,1710798641884,-1601.43,0.00021917,2]
[319466471,1710798641893,-913.08,0.00021917,2]
[319466472,1710798641903,-500.0,0.00021917,2]
[319466473,1710798641913,-187.1634145,0.00021917,2]
[319466474,1710798641922,-500.0,0.00021917,2]
[319466475,1710798641932,-500.0,0.00021917,2]
[319466476,1710798641942,-500.0,0.00021917,2]
[319466477,1710798641952,-500.0,0.00021917,2]
[319466478,1710798641961,-500.0,0.00021917,2]
[319466479,1710798641970,-500.0,0.00021917,2]
[319466480,1710798641980,-956.25,0.00021917,2]
[319466481,1710798641993,-501.22749077,0.00021917,2]
[319466482,1710798642004,-500.0,0.00021917,2]
[319466483,1710798642013,-500.0,0.00021917,2]
[319466484,1710798642023,-500.0,0.00021917,2]
[319466485,1710798642032,-500.0,0.00021917,2]
[319466486,1710798642041,-500.0,0.00021917,2]
[319466487,1710798642051,-1184.52,0.00021917,2]
[319466488,1710798642060,-500.0,0.00021917,2]
[319466489,1710798642069,-660.44,0.00021917,2]
[319466490,1710798642079,-1723.8,0.00021917,2]
[319466491,1710798642087,-1269.88,0.00021917,2]
[319466492,1710798642097,-500.0,0.00021917,2]
[319466493,1710798642106,-1091.52,0.00021917,2]
[319466494,1710798642115,-500.0,0.00021917,2]
[319466495,1710798642125,-500.0,0.00021917,2]
[319466496,1710798642134,-500.0,0.00021917,2]
[319466497,1710798642143,-500.0,0.00021917,2]
[319466498,1710798642152,-500.0,0.00021917,2]
[319466499,1710798642162,-501.78,0.00021917,2]
[319466500,1710798642171,-540.43,0.00021917,2]
[319466501,1710798642180,-500.0,0.00021917,2]
[319466502,1710798642190,-512.09,0.00021917,2]
[319466503,1710798642199,-500.0,0.00021917,2]
[319466504,1710798642209,-1099.14,0.00021917,2]
[319466505,1710798642219,-513.58,0.00021917,2]
[319466506,1710798642230,-500.0,0.00021917,2]
[319466507,1710798642240,-575.5200522,0.00021917,2]
[319466508,1710798642252,-500.0,0.00021917,2]
[319466509,1710798642261,-500.0,0.00021917,2]
[319466510,1710798642272,-500.0,0.00021917,2]
[319466511,1710798642282,-500.0,0.00021917,2]
[319466512,1710798642292,-500.0,0.00021917,2]
[319466513,1710798642301,-500.0,0.00021917,2]
[319466514,1710798642311,-557.77,0.00021917,2]
[319466515,1710798642320,-500.0,0.00021917,2]
[319466517,1710798642331,-500.0,0.00021917,2]
[319466519,1710798642340,-500.0,0.00021917,2]
[319466521,1710798642349,-500.0,0.00021917,2]
[319466523,1710798642358,-500.0,0.00021917,2]
[319466525,1710798642367,-500.0,0.00021917,2]
[319466527,1710798642376,-500.0,0.00021917,2]
[319466529,1710798642386,-500.0,0.00021917,2]
[319466531,1710798642395,-500.0,0.00021917,2]
[319466532,1710798642405,-1667.17,0.00021917,2]
[319466533,1710798642414,-500.0,0.00021917,2]
[319466534,1710798642423,-500.0,0.00021917,2]
[319466535,1710798642432,-500.0,0.00021917,2]
[319466536,1710798642442,-500.0,0.00021917,2]
[319466537,1710798642451,-500.0,0.00021917,2]
[319466538,1710798642459,-500.0,0.00021917,2]
[319466540,1710798642468,-524.25,0.00021917,2]
[319466542,1710798642477,-505.34,0.00021917,2]
[319466544,1710798642486,-1189.5,0.00021917,2]
[319466545,1710798642495,-500.0,0.00021917,2]
[319466546,1710798642504,-500.0,0.00021917,2]
[319466547,1710798642513,-1669.64,0.00021917,2]
[319466548,1710798642522,-500.0,0.00021917,2]
[319466549,1710798642531,-2511.97,0.00021917,2]
[319466550,1710798642540,-500.0,0.00021917,2]
[319466551,1710798642550,-1271.39,0.00021917,2]
[319466552,1710798642559,-500.0,0.00021917,2]
[319466553,1710798642568,-700.42,0.00021917,2]
[319466554,1710798642578,-500.0,0.00021917,2]
[319466555,1710798642587,-274.57125575,0.00021917,2]
[319466556,1710798642596,-500.0,0.00021917,2]
[319466557,1710798642605,-500.0,0.00021917,2]
[319466558,1710798642614,-1979.94,0.00021917,2]
[319466559,1710798642624,-500.0,0.00021917,2]
[319466560,1710798642634,-878.66,0.00021917,2]
[319466561,1710798642643,-500.0,0.00021917,2]
[319466562,1710798642652,-500.0,0.00021917,2]
[319466563,1710798642662,-1762.09,0.00021917,2]
[319466564,1710798642671,-500.0,0.00021917,2]
[319466565,1710798642680,-500.0,0.00021917,2]
[319466566,1710798642690,-500.0,0.00021917,2]
[319466567,1710798642700,-500.0,0.00021917,2]
[319466568,1710798642710,-500.0,0.00021917,2]
[319466569,1710798642719,-500.0,0.00021917,2]
[319466570,1710798642728,-500.0,0.00021917,2]
[319466571,1710798642738,-500.0,0.00021917,2]
[319466572,1710798642747,-500.0,0.00021917,2]
[319466573,1710798642756,-500.0,0.00021917,2]
[319466574,1710798642765,-500.0,0.00021917,2]
[319466575,1710798642775,-500.0,0.00021917,2]
[319466576,1710798642784,-500.0,0.00021917,2]
[319466577,1710798642794,-500.0,0.00021917,2]
[319466578,1710798642804,-500.0,0.00021917,2]
[319466579,1710798642813,-500.0,0.00021917,2]
[319466580,1710798642822,-500.0,0.00021917,2]
[319466581,1710798642831,-500.0,0.00021917,2]
[319466582,1710798642840,-500.0,0.00021917,2]
[319466583,1710798642849,-526.51,0.00021917,2]
[319466584,1710798642858,-500.0,0.00021917,2]
[319466585,1710798642867,-501.81147105,0.00021917,2]
[319466586,1710798642876,-791.92,0.00021917,2]
[319466587,1710798642885,-645.91,0.00021917,2]
[319466588,1710798642894,-1799.02,0.00021917,2]
[319466589,1710798642903,-652.62,0.00021917,2]
[319466590,1710798642912,-500.0,0.00021917,2]
[319466591,1710798642921,-500.0,0.00021917,2]
[319466592,1710798642930,-500.0,0.00021917,2]
[319466593,1710798642939,-500.0,0.00021917,2]
[319466594,1710798642948,-500.0,0.00021917,2]
[319466595,1710798642957,-500.0,0.00021917,2]
[319466596,1710798642966,-559.14,0.00021917,2]
[319466597,1710798642975,-500.0,0.00021917,2]
[319466598,1710798642985,-500.0,0.00021917,2]
[319466599,1710798642994,-500.0,0.00021917,2]
[319466600,1710798643003,-500.0,0.00021917,2]
[319466601,1710798643013,-500.0,0.00021917,2]
[319466602,1710798643022,-500.0,0.00021917,2]
[319466603,1710798643031,-500.0,0.00021917,2]
[319466604,1710798643041,-594.68,0.00021917,2]
[319466605,1710798643050,-521.01,0.00021917,2]
[319466606,1710798643060,-509.68,0.00021917,2]
[319466607,1710798643070,-500.0,0.00021917,2]
[319466608,1710798643079,-677.17,0.00021917,2]
[319466609,1710798643088,-500.0,0.00021917,2]
[319466610,1710798643097,-500.0,0.00021917,2]
[319466611,1710798643107,-518.36541809,0.00021917,2]
[319466612,1710798643116,-500.0,0.00021917,2]
[319466613,1710798643126,-500.29,0.00021917,2]
[319466614,1710798643135,-921.44,0.00021917,2]
[319466615,1710798643146,-1189.47,0.00021917,2]
[319466616,1710798643155,-500.0,0.00021917,2]
[319466617,1710798643164,-500.0,0.00021917,2]
[319466618,1710798643173,-568.38,0.00021917,2]
[319466619,1710798643183,-500.0,0.00021917,2]
[319466620,1710798643196,-500.0,0.00021917,2]
[319466621,1710798643205,-500.0,0.00021917,2]
[319466622,1710798643216,-500.0,0.00021917,2]
[319466623,1710798643226,-500.0,0.00021917,2]
[319466624,1710798643237,-1509.32,0.00021917,2]
[319466625,1710798643246,-751.35,0.00021917,2]
[319466626,1710798643255,-500.0,0.00021917,2]
[319466627,1710798643265,-593.87,0.00021917,2]
[319466628,1710798643274,-786.14,0.00021917,2]
[319466629,1710798643284,-500.0,0.00021917,2]
[319466630,1710798643293,-741.24,0.00021917,2]
[319466631,1710798643303,-500.0,0.00021917,2]
[319466632,1710798643311,-626.64,0.00021917,2]
[319466633,1710798643321,-500.0,0.00021917,2]
[319466634,1710798643331,-500.0,0.00021917,2]
[319466635,1710798643341,-500.0,0.00021917,2]
[319466636,1710798643350,-500.0,0.00021917,2]
[319466637,1710798643360,-500.0,0.00021917,2]
[319466638,1710798643369,-500.0,0.00021917,2]
[319466639,1710798643378,-500.0,0.00021917,2]
[319466640,1710798643387,-464.08017248,0.00021917,2]
[319466641,1710798643397,-500.0,0.00021917,2]
[319466642,1710798643406,-778.3,0.00021917,2]
[319466643,1710798643416,-500.0,0.00021917,2]
[319466644,1710798643426,-500.0,0.00021917,2]
[319466645,1710798643435,-500.0,0.00021917,2]
[319466646,1710798643444,-2107.09,0.00021917,2]
[319466647,1710798643453,-516.87,0.00021917,2]
[319466648,1710798643463,-500.0,0.00021917,2]
[319466649,1710798643473,-500.0,0.00021917,2]
[319466650,1710798643482,-500.0,0.00021917,2]
[319466651,1710798643491,-1038.39,0.00021917,2]
[319466652,1710798643502,-1271.67,0.00021917,2]
[319466653,1710798643511,-1564.33,0.00021917,2]
[319466654,1710798643521,-500.0,0.00021917,2]
[319466655,1710798643530,-1500.06,0.00021917,2]
[319466656,1710798643539,-500.0,0.00021917,2]
[319466657,1710798643549,-500.0,0.00021917,2]
[319466658,1710798643557,-500.0,0.00021917,2]
[319466659,1710798643567,-500.0,0.00021917,2]
[319466660,1710798643576,-1135.58,0.00021917,2]
[319466661,1710798643585,-500.0,0.00021917,2]
[319466662,1710798643594,-500.0,0.00021917,2]
[319466663,1710798643603,-500.0,0.00021917,2]
[319466664,1710798643612,-500.0,0.00021917,2]
[319466665,1710798643623,-500.0,0.00021917,2]
[319466666,1710798643632,-761.28,0.00021917,2]
[319466667,1710798643641,-500.0,0.00021917,2]
[319466668,1710798643650,-500.0,0.00021917,2]
[319466669,1710798643660,-1094.24,0.00021917,2]
[319466670,1710798643670,-500.0,0.00021917,2]